[Event "Titled Tuesday Blitz April 11 Early 2023"]
[White "Timofeev, Artyom"]
[Black "Arias, Juan Cruz"]
[WhiteFideId "4140419"]
[BlackFideId "118540"]
[WhiteElo "2586"]
[BlackElo "2243"]
[Result "1/2-1/2"]
[Round "06"]
[TimeControl "180+2"]
[Date "2023.04.11"]
[WhiteClock "0:00:16"]
[BlackClock "0:00:06"]

1. c4 {[%clk 0:02:54]}  e6 {[%clk 0:02:59]} 2. Nc3 {[%clk 0:02:53]}  d5 {[%clk 0:02:59]} 3. d4 {[%clk 0:02:53]}  Nf6 {[%clk 0:02:58]} 4. Bg5 {[%clk 0:02:53]}  dxc4 {[%clk 0:02:58]} 5. e4 {[%clk 0:02:51]}  c5 {[%clk 0:02:52]} 6. d5 {[%clk 0:02:45]}  Be7 {[%clk 0:02:47]} 7. dxe6 {[%clk 0:01:59]}  Bxe6 {[%clk 0:02:41]} 8. Qxd8+ {[%clk 0:01:58]}  Bxd8 {[%clk 0:02:41]} 9. Nf3 {[%clk 0:01:55]}  O-O {[%clk 0:02:33]} 10. e5 {[%clk 0:01:48]}  Nfd7 {[%clk 0:02:29]} 11. Bxd8 {[%clk 0:01:44]}  Rxd8 {[%clk 0:02:30]} 12. O-O-O {[%clk 0:01:34]}  Nc6 {[%clk 0:02:25]} 13. Re1 {[%clk 0:01:34]}  a6 {[%clk 0:02:20]} 14. g3 {[%clk 0:01:28]}  b5 {[%clk 0:02:19]} 15. Bg2 {[%clk 0:01:28]}  Rac8 {[%clk 0:02:19]} 16. Re3 {[%clk 0:01:26]}  Nb6 {[%clk 0:02:16]} 17. Ng5 {[%clk 0:01:24]}  Nd4 {[%clk 0:02:14]} 18. Nxe6 {[%clk 0:01:22]}  fxe6 {[%clk 0:02:10]} 19. f4 {[%clk 0:01:21]}  b4 {[%clk 0:02:04]} 20. Ne4 {[%clk 0:01:21]}  Nd5 {[%clk 0:02:04]} 21. Ree1 {[%clk 0:01:21]}  c3 {[%clk 0:01:58]} 22. bxc3 {[%clk 0:01:21]}  Nxc3 {[%clk 0:01:56]} 23. Nxc3 {[%clk 0:01:19]}  bxc3 {[%clk 0:01:56]} 24. Re3 {[%clk 0:01:19]}  Rb8 {[%clk 0:01:52]} 25. Be4 {[%clk 0:01:17]}  Rb2 {[%clk 0:01:34]} 26. Rxc3 {[%clk 0:01:14]}  Rxa2 {[%clk 0:01:31]} 27. Kb1 {[%clk 0:01:14]}  Re2 {[%clk 0:01:28]} 28. Bc2 {[%clk 0:00:53]}  Rb8+ {[%clk 0:01:14]} 29. Kc1 {[%clk 0:00:53]}  Rb5 {[%clk 0:01:11]} 30. Bd3 {[%clk 0:00:47]}  Ra5 {[%clk 0:00:51]} 31. Bxe2 {[%clk 0:00:43]}  Nxe2+ {[%clk 0:00:52]} 32. Kd2 {[%clk 0:00:42]}  Nxc3 {[%clk 0:00:50]} 33. Kxc3 {[%clk 0:00:43]}  Ra2 {[%clk 0:00:50]} 34. g4 {[%clk 0:00:40]}  Rf2 {[%clk 0:00:45]} 35. Kc4 {[%clk 0:00:36]}  Rxf4+ {[%clk 0:00:36]} 36. Kxc5 {[%clk 0:00:36]}  Kf7 {[%clk 0:00:36]} 37. h3 {[%clk 0:00:34]}  Re4 {[%clk 0:00:31]} 38. Kd6 {[%clk 0:00:34]}  Rd4+ {[%clk 0:00:31]} 39. Kc6 {[%clk 0:00:31]}  Rd5 {[%clk 0:00:30]} 40. Re1 {[%clk 0:00:31]}  a5 {[%clk 0:00:30]} 41. Kb6 {[%clk 0:00:30]}  Kg6 {[%clk 0:00:26]} 42. h4 {[%clk 0:00:30]}  h6 {[%clk 0:00:24]} 43. Re4 {[%clk 0:00:29]}  Kf7 {[%clk 0:00:22]} 44. Kc6 {[%clk 0:00:29]}  Kg6 {[%clk 0:00:23]} 45. Kb6 {[%clk 0:00:29]}  h5 {[%clk 0:00:23]} 46. Kc6 {[%clk 0:00:28]}  Kh6 {[%clk 0:00:20]} 47. g5+ {[%clk 0:00:17]}  Kg6 {[%clk 0:00:20]} 48. Rf4 {[%clk 0:00:16]}  Rxe5 {[%clk 0:00:20]} 49. Kd6 {[%clk 0:00:16]}  Re1 {[%clk 0:00:19]} 50. Ra4 {[%clk 0:00:16]}  Kf5 {[%clk 0:00:16]} 51. Rxa5+ {[%clk 0:00:16]}  e5 {[%clk 0:00:17]} 52. Ra7 {[%clk 0:00:16]}  Rd1+ {[%clk 0:00:15]} 53. Ke7 {[%clk 0:00:16]}  e4 {[%clk 0:00:16]} 54. Kf7 {[%clk 0:00:16]}  g6 {[%clk 0:00:12]} 55. Ra5+ {[%clk 0:00:16]}  Kf4 {[%clk 0:00:13]} 56. Kxg6 {[%clk 0:00:16]}  e3 {[%clk 0:00:13]} 57. Rf5+ {[%clk 0:00:16]}  Ke4 {[%clk 0:00:11]} 58. Rf8 {[%clk 0:00:16]}  e2 {[%clk 0:00:11]} 59. Re8+ {[%clk 0:00:16]}  Kf3 {[%clk 0:00:11]} 60. Kxh5 {[%clk 0:00:17]}  e1=Q {[%clk 0:00:11]} 61. Rxe1 {[%clk 0:00:17]}  Rxe1 {[%clk 0:00:12]} 62. g6 {[%clk 0:00:15]}  Kf4 {[%clk 0:00:12]} 63. g7 {[%clk 0:00:15]}  Rg1 {[%clk 0:00:12]} 64. Kh6 {[%clk 0:00:15]}  Kf5 {[%clk 0:00:09]} 65. Kh7 {[%clk 0:00:15]}  Rxg7+ {[%clk 0:00:05]} 66. Kxg7 {[%clk 0:00:15]}  Kg4 {[%clk 0:00:06]} 67. h5 {[%clk 0:00:16]}  Kxh5 {[%clk 0:00:06]} 1/2-1/2


[Site "https://www.chess.com"]

[Event "Titled Tuesday Blitz April 11 Early 2023"]
[White "slidingknight2775"]
[Black "Real_OceanStorm"]
[WhiteElo "2586"]
[BlackElo "2804"]
[Result "0-1"]
[Round "06"]
[TimeControl "180+2"]
[Date "2023.04.11"]
[WhiteClock "0:00:03"]
[BlackClock "0:00:43"]

1. d4 {[%clk 0:03:00]}  Nf6 {[%clk 0:02:54]} 2. c4 {[%clk 0:03:00]}  g6 {[%clk 0:02:54]} 3. Nc3 {[%clk 0:03:00]}  d6 {[%clk 0:02:54]} 4. e4 {[%clk 0:03:00]}  c5 {[%clk 0:02:53]} 5. d5 {[%clk 0:02:59]}  Nbd7 {[%clk 0:02:54]} 6. Nf3 {[%clk 0:02:53]}  Bg7 {[%clk 0:02:53]} 7. h3 {[%clk 0:02:52]}  O-O {[%clk 0:02:53]} 8. Bd3 {[%clk 0:02:51]}  b6 {[%clk 0:02:53]} 9. O-O {[%clk 0:02:51]}  Nh5 {[%clk 0:02:53]} 10. Re1 {[%clk 0:02:50]}  Ne5 {[%clk 0:02:53]} 11. Nxe5 {[%clk 0:02:43]}  Bxe5 {[%clk 0:02:52]} 12. Ne2 {[%clk 0:02:43]}  f5 {[%clk 0:02:47]} 13. exf5 {[%clk 0:02:21]}  Bxf5 {[%clk 0:02:47]} 14. Bxf5 {[%clk 0:02:20]}  gxf5 {[%clk 0:02:32]} 15. f4 {[%clk 0:02:17]}  Bg7 {[%clk 0:02:32]} 16. Nc3 {[%clk 0:02:16]}  Bxc3 {[%clk 0:02:26]} 17. bxc3 {[%clk 0:02:15]}  Ng3 {[%clk 0:02:26]} 18. Qf3 {[%clk 0:02:09]}  Ne4 {[%clk 0:02:26]} 19. g4 {[%clk 0:01:57]}  Kh8 {[%clk 0:02:26]} 20. g5 {[%clk 0:01:56]}  e5 {[%clk 0:02:08]} 21. dxe6 {[%clk 0:01:49]}  Qe8 {[%clk 0:02:02]} 22. Rb1 {[%clk 0:00:35]}  Qxe6 {[%clk 0:01:49]} 23. Rb2 {[%clk 0:00:33]}  Qxc4 {[%clk 0:01:28]} 24. Rg2 {[%clk 0:00:28]}  Rg8 {[%clk 0:01:11]} 25. h4 {[%clk 0:00:21]}  Rae8 {[%clk 0:01:04]} 26. h5 {[%clk 0:00:18]}  Nxg5 {[%clk 0:01:00]} 27. Rxg5 {[%clk 0:00:09]}  Rxe1+ {[%clk 0:01:00]} 28. Kh2 {[%clk 0:00:10]}  Rxc1 {[%clk 0:00:43]} 29. Rxg8+ {[%clk 0:00:03]}  Qxg8 {[%clk 0:00:43]} 0-1


[Site "https://www.chess.com"]

[Event "Titled Tuesday Blitz April 11 Early 2023"]
[White "Yelisieiev, Yevhenii"]
[Black "Ioannidis, Evgenios"]
[WhiteFideId "14139642"]
[BlackFideId "4229274"]
[WhiteElo "2425"]
[BlackElo "2386"]
[Result "0-1"]
[Round "06"]
[TimeControl "180+2"]
[Date "2023.04.11"]
[WhiteClock "0:00:06"]
[BlackClock "0:01:11"]

1. d4 {[%clk 0:03:00]}  Nf6 {[%clk 0:02:59]} 2. Nf3 {[%clk 0:03:01]}  d5 {[%clk 0:03:00]} 3. c4 {[%clk 0:02:58]}  e6 {[%clk 0:03:00]} 4. g3 {[%clk 0:02:58]}  dxc4 {[%clk 0:03:00]} 5. Bg2 {[%clk 0:02:56]}  Bd7 {[%clk 0:02:58]} 6. a4 {[%clk 0:02:55]}  Bc6 {[%clk 0:02:47]} 7. O-O {[%clk 0:02:54]}  a6 {[%clk 0:02:44]} 8. a5 {[%clk 0:02:47]}  Nbd7 {[%clk 0:02:38]} 9. Nbd2 {[%clk 0:02:46]}  b5 {[%clk 0:02:37]} 10. axb6 {[%clk 0:02:43]}  Nxb6 {[%clk 0:02:37]} 11. Qc2 {[%clk 0:02:42]}  Qd5 {[%clk 0:02:30]} 12. e4 {[%clk 0:02:33]}  Qb5 {[%clk 0:02:26]} 13. Ne5 {[%clk 0:02:31]}  Bb7 {[%clk 0:02:13]} 14. Ndxc4 {[%clk 0:02:22]}  Nxc4 {[%clk 0:02:11]} 15. Nxc4 {[%clk 0:02:21]}  Bb4 {[%clk 0:02:08]} 16. Bg5 {[%clk 0:02:05]}  Qxg5 {[%clk 0:02:07]} 17. e5 {[%clk 0:01:57]}  Bxg2 {[%clk 0:02:06]} 18. Qa4+ {[%clk 0:01:44]}  Nd7 {[%clk 0:02:05]} 19. Kxg2 {[%clk 0:01:20]}  Qe7 {[%clk 0:02:05]} 20. Rfc1 {[%clk 0:00:46]}  O-O {[%clk 0:02:03]} 21. Ne3 {[%clk 0:00:41]}  Nb6 {[%clk 0:02:03]} 22. Qc6 {[%clk 0:00:40]}  Rfc8 {[%clk 0:02:02]} 23. Rc2 {[%clk 0:00:33]}  Qd7 {[%clk 0:01:57]} 24. Qe4 {[%clk 0:00:31]}  Nd5 {[%clk 0:01:51]} 25. Rac1 {[%clk 0:00:27]}  Nxe3+ {[%clk 0:01:48]} 26. Qxe3 {[%clk 0:00:27]}  Qd5+ {[%clk 0:01:46]} 27. f3 {[%clk 0:00:26]}  c6 {[%clk 0:01:38]} 28. h4 {[%clk 0:00:25]}  Rc7 {[%clk 0:01:38]} 29. h5 {[%clk 0:00:25]}  h6 {[%clk 0:01:34]} 30. g4 {[%clk 0:00:25]}  Be7 {[%clk 0:01:33]} 31. Ra1 {[%clk 0:00:25]}  a5 {[%clk 0:01:32]} 32. Qd2 {[%clk 0:00:23]}  Rd7 {[%clk 0:01:30]} 33. Ra4 {[%clk 0:00:20]}  Rb8 {[%clk 0:01:29]} 34. Rcc4 {[%clk 0:00:14]}  Qxe5 {[%clk 0:01:26]} 35. Rxa5 {[%clk 0:00:14]}  Qc7 {[%clk 0:01:20]} 36. b4 {[%clk 0:00:14]}  Bf6 {[%clk 0:01:13]} 37. Qc3 {[%clk 0:00:13]}  Qf4 {[%clk 0:01:11]} 38. Rxc6 {[%clk 0:00:07]}  Rxd4 {[%clk 0:01:09]} 39. Rc8+ {[%clk 0:00:06]}  Rxc8 {[%clk 0:01:10]} 40. Qxc8+ {[%clk 0:00:05]}  Rd8 {[%clk 0:01:10]} 41. Qc2 {[%clk 0:00:06]}  Rd2+ {[%clk 0:01:11]} 0-1


[Site "https://www.chess.com"]

[Event "Titled Tuesday Blitz April 11 Early 2023"]
[White "Rodshtein, Maxim"]
[Black "Devaev, Alexander"]
[WhiteFideId "2806851"]
[BlackFideId "4169395"]
[WhiteElo "2555"]
[BlackElo "2204"]
[Result "1-0"]
[Round "06"]
[TimeControl "180+2"]
[Date "2023.04.11"]
[WhiteClock "0:00:13"]
[BlackClock "0:00:05"]

1. e4 {[%clk 0:03:00]}  c6 {[%clk 0:02:58]} 2. Nf3 {[%clk 0:03:00]}  d5 {[%clk 0:02:59]} 3. d3 {[%clk 0:03:01]}  d4 {[%clk 0:02:58]} 4. g3 {[%clk 0:02:56]}  c5 {[%clk 0:02:58]} 5. Bg2 {[%clk 0:02:56]}  Nc6 {[%clk 0:02:59]} 6. O-O {[%clk 0:02:56]}  e5 {[%clk 0:02:59]} 7. Na3 {[%clk 0:02:55]}  h6 {[%clk 0:02:58]} 8. Nc4 {[%clk 0:02:53]}  Qc7 {[%clk 0:02:59]} 9. Nh4 {[%clk 0:02:42]}  Be6 {[%clk 0:02:29]} 10. f4 {[%clk 0:02:37]}  Nf6 {[%clk 0:02:28]} 11. b3 {[%clk 0:02:25]}  O-O-O {[%clk 0:02:08]} 12. Nf3 {[%clk 0:02:20]}  Nd7 {[%clk 0:02:00]} 13. a4 {[%clk 0:01:53]}  Be7 {[%clk 0:01:51]} 14. Bd2 {[%clk 0:01:41]}  f6 {[%clk 0:01:46]} 15. Nh4 {[%clk 0:01:38]}  Rhe8 {[%clk 0:01:19]} 16. Qh5 {[%clk 0:01:19]}  Bf8 {[%clk 0:01:04]} 17. Ng6 {[%clk 0:01:16]}  Bf7 {[%clk 0:00:59]} 18. Qg4 {[%clk 0:01:16]}  Kb8 {[%clk 0:00:52]} 19. h4 {[%clk 0:01:10]}  Be6 {[%clk 0:00:51]} 20. Qf3 {[%clk 0:01:08]}  Bf7 {[%clk 0:00:48]} 21. h5 {[%clk 0:01:07]}  Ka8 {[%clk 0:00:43]} 22. Bh3 {[%clk 0:01:06]}  Bd6 {[%clk 0:00:36]} 23. Bf5 {[%clk 0:01:02]}  Nf8 {[%clk 0:00:34]} 24. Qg4 {[%clk 0:01:02]}  Nxg6 {[%clk 0:00:33]} 25. Bxg6 {[%clk 0:01:00]}  Bxg6 {[%clk 0:00:24]} 26. hxg6 {[%clk 0:01:01]}  Kb8 {[%clk 0:00:20]} 27. Kg2 {[%clk 0:01:01]}  Ka8 {[%clk 0:00:20]} 28. Rf2 {[%clk 0:01:01]}  Kb8 {[%clk 0:00:21]} 29. Raf1 {[%clk 0:01:00]}  Re7 {[%clk 0:00:20]} 30. Qh5 {[%clk 0:00:59]}  Rde8 {[%clk 0:00:21]} 31. Qg4 {[%clk 0:00:48]}  b6 {[%clk 0:00:21]} 32. Ra1 {[%clk 0:00:45]}  Kb7 {[%clk 0:00:21]} 33. Rff1 {[%clk 0:00:44]}  Kb8 {[%clk 0:00:15]} 34. Qf5 {[%clk 0:00:35]}  Kb7 {[%clk 0:00:14]} 35. Na3 {[%clk 0:00:35]}  a6 {[%clk 0:00:13]} 36. Nc4 {[%clk 0:00:35]}  Qd7 {[%clk 0:00:07]} 37. g4 {[%clk 0:00:21]}  Bc7 {[%clk 0:00:06]} 38. fxe5 {[%clk 0:00:17]}  Nxe5 {[%clk 0:00:05]} 39. Qxd7 {[%clk 0:00:17]}  Nxd7 {[%clk 0:00:04]} 40. Kh3 {[%clk 0:00:16]}  Kc6 {[%clk 0:00:04]} 41. Rf5 {[%clk 0:00:14]}  Ne5 {[%clk 0:00:03]} 42. Nxe5+ {[%clk 0:00:12]}  Rxe5 {[%clk 0:00:03]} 43. Raf1 {[%clk 0:00:11]}  R5e7 {[%clk 0:00:03]} 44. Kh4 {[%clk 0:00:11]}  Be5 {[%clk 0:00:03]} 45. Kh5 {[%clk 0:00:11]}  b5 {[%clk 0:00:03]} 46. axb5+ {[%clk 0:00:11]}  axb5 {[%clk 0:00:04]} 47. Ra1 {[%clk 0:00:11]}  Kb6 {[%clk 0:00:04]} 48. Bf4 {[%clk 0:00:11]}  c4 {[%clk 0:00:04]} 49. bxc4 {[%clk 0:00:11]}  bxc4 {[%clk 0:00:04]} 50. Bxe5 {[%clk 0:00:10]}  Rxe5 {[%clk 0:00:05]} 51. Ra4 {[%clk 0:00:09]}  Rxf5+ {[%clk 0:00:05]} 52. gxf5 {[%clk 0:00:09]}  cxd3 {[%clk 0:00:05]} 53. cxd3 {[%clk 0:00:10]}  Kc5 {[%clk 0:00:06]} 54. Rc4+ {[%clk 0:00:10]}  Kb5 {[%clk 0:00:05]} 55. Rxd4 {[%clk 0:00:10]}  Re7 {[%clk 0:00:06]} 56. Rd5+ {[%clk 0:00:10]}  Kb4 {[%clk 0:00:06]} 57. Kg4 {[%clk 0:00:11]}  Kc3 {[%clk 0:00:07]} 58. Kf4 {[%clk 0:00:11]}  Kd2 {[%clk 0:00:06]} 59. Rd8 {[%clk 0:00:11]}  Ke2 {[%clk 0:00:06]} 60. d4 {[%clk 0:00:11]}  Kd3 {[%clk 0:00:05]} 61. e5 {[%clk 0:00:12]}  fxe5+ {[%clk 0:00:05]} 62. dxe5+ {[%clk 0:00:12]}  Ke2 {[%clk 0:00:04]} 63. f6 {[%clk 0:00:12]}  gxf6 {[%clk 0:00:04]} 64. exf6 {[%clk 0:00:13]}  Rd7 {[%clk 0:00:05]} 65. Rxd7 {[%clk 0:00:13]} 1-0


[Site "https://www.chess.com"]

[Event "Titled Tuesday Blitz April 11 Early 2023"]
[White "TimGrutter03"]
[Black "Samadov, Read"]
[BlackFideId "13417444"]
[WhiteElo "2591"]
[BlackElo "2355"]
[Result "0-1"]
[Round "06"]
[TimeControl "180+2"]
[Date "2023.04.11"]
[WhiteClock "0:00:02"]
[BlackClock "0:00:28"]

1. e4 {[%clk 0:03:00]}  c5 {[%clk 0:02:59]} 2. Nf3 {[%clk 0:03:01]}  d6 {[%clk 0:03:00]} 3. d4 {[%clk 0:03:01]}  cxd4 {[%clk 0:03:01]} 4. Nxd4 {[%clk 0:03:01]}  Nf6 {[%clk 0:03:01]} 5. Nc3 {[%clk 0:03:02]}  a6 {[%clk 0:03:02]} 6. h4 {[%clk 0:03:02]}  Nbd7 {[%clk 0:03:01]} 7. h5 {[%clk 0:02:58]}  h6 {[%clk 0:02:59]} 8. f4 {[%clk 0:02:50]}  e6 {[%clk 0:02:58]} 9. Qf3 {[%clk 0:02:50]}  Qc7 {[%clk 0:02:56]} 10. Nb3 {[%clk 0:02:41]}  b5 {[%clk 0:02:56]} 11. Bd3 {[%clk 0:02:41]}  Bb7 {[%clk 0:02:56]} 12. Bd2 {[%clk 0:02:40]}  b4 {[%clk 0:02:53]} 13. Ne2 {[%clk 0:02:40]}  a5 {[%clk 0:02:48]} 14. g4 {[%clk 0:02:36]}  Be7 {[%clk 0:02:46]} 15. g5 {[%clk 0:02:35]}  hxg5 {[%clk 0:02:45]} 16. fxg5 {[%clk 0:02:35]}  Ne5 {[%clk 0:02:44]} 17. Qg3 {[%clk 0:02:32]}  Nxe4 {[%clk 0:02:42]} 18. Bxe4 {[%clk 0:02:18]}  Bxe4 {[%clk 0:02:42]} 19. Rf1 {[%clk 0:02:02]}  Rxh5 {[%clk 0:02:36]} 20. Nbd4 {[%clk 0:01:53]}  Rc8 {[%clk 0:01:51]} 21. Rc1 {[%clk 0:01:21]}  Qb7 {[%clk 0:01:25]} 22. Qf2 {[%clk 0:01:10]}  Bxc2 {[%clk 0:01:21]} 23. Nf4 {[%clk 0:01:04]}  Qe4+ {[%clk 0:01:18]} 24. Qe3 {[%clk 0:01:04]}  Rxg5 {[%clk 0:00:53]} 25. Qxe4 {[%clk 0:01:00]}  Bxe4 {[%clk 0:00:52]} 26. Rxc8+ {[%clk 0:00:59]}  Kd7 {[%clk 0:00:53]} 27. Rc1 {[%clk 0:00:33]}  Rg4 {[%clk 0:00:53]} 28. Be3 {[%clk 0:00:25]}  g5 {[%clk 0:00:52]} 29. Nb5 {[%clk 0:00:08]}  Bc6 {[%clk 0:00:43]} 30. Nd4 {[%clk 0:00:04]}  gxf4 {[%clk 0:00:42]} 31. Nxc6 {[%clk 0:00:04]}  Nd3+ {[%clk 0:00:39]} 32. Kd2 {[%clk 0:00:03]}  Nxc1 {[%clk 0:00:40]} 33. Rxc1 {[%clk 0:00:02]}  fxe3+ {[%clk 0:00:39]} 34. Ke2 {[%clk 0:00:03]}  Rg2+ {[%clk 0:00:38]} 35. Kf3 {[%clk 0:00:04]}  Rf2+ {[%clk 0:00:35]} 36. Kg3 {[%clk 0:00:03]}  Bg5 {[%clk 0:00:29]} 37. Nb8+ {[%clk 0:00:01]}  Ke7 {[%clk 0:00:29]} 38. Nc6+ {[%clk 0:00:01]}  Kf6 {[%clk 0:00:29]} 39. Nxa5 {[%clk 0:00:01]}  Rxb2 {[%clk 0:00:29]} 40. Rf1+ {[%clk 0:00:01]}  Kg6 {[%clk 0:00:29]} 41. Nc4 {[%clk 0:00:02]}  Rxa2 {[%clk 0:00:29]} 42. Re1 {[%clk 0:00:02]}  Rc2 {[%clk 0:00:28]} 43. Nxe3 {[%clk 0:00:02]}  Rc3 {[%clk 0:00:28]} 0-1


[Site "https://www.chess.com"]

[Event "Titled Tuesday Blitz April 11 Early 2023"]
[White "Ibadov, Dashgyn"]
[Black "Gharibyan, Mamikon"]
[WhiteFideId "24107514"]
[BlackFideId "13308300"]
[WhiteElo "2208"]
[BlackElo "2445"]
[Result "1-0"]
[Round "06"]
[TimeControl "180+2"]
[Date "2023.04.11"]
[WhiteClock "0:00:02"]
[BlackClock "0:00:02"]

1. e4 {[%clk 0:03:00]}  c5 {[%clk 0:02:58]} 2. Nf3 {[%clk 0:03:00]}  Nc6 {[%clk 0:02:59]} 3. Bb5 {[%clk 0:02:59]}  e5 {[%clk 0:02:58]} 4. O-O {[%clk 0:02:58]}  Bd6 {[%clk 0:02:58]} 5. c3 {[%clk 0:02:58]}  a6 {[%clk 0:02:57]} 6. Ba4 {[%clk 0:02:57]}  b5 {[%clk 0:02:57]} 7. Bb3 {[%clk 0:02:58]}  c4 {[%clk 0:02:58]} 8. Bc2 {[%clk 0:02:57]}  Nf6 {[%clk 0:02:51]} 9. d4 {[%clk 0:02:57]}  cxd3 {[%clk 0:02:51]} 10. Qxd3 {[%clk 0:02:57]}  Bc5 {[%clk 0:02:49]} 11. Bg5 {[%clk 0:02:56]}  h6 {[%clk 0:02:46]} 12. Bh4 {[%clk 0:02:52]}  d6 {[%clk 0:02:37]} 13. Rd1 {[%clk 0:02:49]}  g5 {[%clk 0:02:05]} 14. Bg3 {[%clk 0:02:48]}  b4 {[%clk 0:01:37]} 15. Ba4 {[%clk 0:02:41]}  Bd7 {[%clk 0:01:37]} 16. Nbd2 {[%clk 0:02:29]}  bxc3 {[%clk 0:01:30]} 17. bxc3 {[%clk 0:02:30]}  Na5 {[%clk 0:01:00]} 18. Bxd7+ {[%clk 0:02:18]}  Nxd7 {[%clk 0:00:55]} 19. Nb3 {[%clk 0:02:12]}  Nxb3 {[%clk 0:00:55]} 20. axb3 {[%clk 0:02:13]}  a5 {[%clk 0:00:53]} 21. Nd2 {[%clk 0:02:00]}  Ke7 {[%clk 0:00:40]} 22. Nc4 {[%clk 0:01:59]}  Qc7 {[%clk 0:00:39]} 23. h4 {[%clk 0:01:05]}  g4 {[%clk 0:00:22]} 24. h5 {[%clk 0:01:04]}  f6 {[%clk 0:00:17]} 25. Qe2 {[%clk 0:01:01]}  Rhg8 {[%clk 0:00:16]} 26. Rd3 {[%clk 0:00:58]}  Nf8 {[%clk 0:00:14]} 27. Qd2 {[%clk 0:00:53]}  Ne6 {[%clk 0:00:14]} 28. Qxh6 {[%clk 0:00:52]}  Rg5 {[%clk 0:00:10]} 29. Bh4 {[%clk 0:00:45]}  Nf4 {[%clk 0:00:04]} 30. Bxg5 {[%clk 0:00:42]}  Nxd3 {[%clk 0:00:02]} 31. Qxf6+ {[%clk 0:00:28]}  Kd7 {[%clk 0:00:03]} 32. Rd1 {[%clk 0:00:28]}  Nxf2 {[%clk 0:00:02]} 33. Nxe5+ {[%clk 0:00:18]}  Kc8 {[%clk 0:00:02]} 34. Qe6+ {[%clk 0:00:07]}  Kb7 {[%clk 0:00:03]} 35. Qd5+ {[%clk 0:00:07]}  Ka7 {[%clk 0:00:03]} 36. Nc6+ {[%clk 0:00:05]}  Kb6 {[%clk 0:00:04]} 37. Nd4 {[%clk 0:00:05]}  Nxd1 {[%clk 0:00:03]} 38. Qxa8 {[%clk 0:00:04]}  Nxc3 {[%clk 0:00:03]} 39. Be3 {[%clk 0:00:02]}  Nxe4 {[%clk 0:00:02]} 40. b4 {[%clk 0:00:01]}  axb4 {[%clk 0:00:02]} 41. Qa4 {[%clk 0:00:01]}  g3 {[%clk 0:00:02]} 42. Qb5+ {[%clk 0:00:01]}  Ka7 {[%clk 0:00:03]} 43. Nc6+ {[%clk 0:00:02]}  Ka8 {[%clk 0:00:01]} 44. Qa6+ {[%clk 0:00:02]}  Ba7 {[%clk 0:00:01]} 45. Bxa7 {[%clk 0:00:02]}  Qb7 {[%clk 0:00:02]} 46. Qxb7+ {[%clk 0:00:02]}  Kxb7 {[%clk 0:00:02]} 47. h6 {[%clk 0:00:02]}  Ng5 {[%clk 0:00:02]} 48. Be3 {[%clk 0:00:02]} 1-0


[Site "https://www.chess.com"]

[Event "Titled Tuesday Blitz April 11 Early 2023"]
[White "Filgueira, Hernan"]
[Black "Costachi, Mihnea"]
[WhiteFideId "101770"]
[BlackFideId "1217518"]
[WhiteElo "2363"]
[BlackElo "2456"]
[Result "1-0"]
[Round "06"]
[TimeControl "180+2"]
[Date "2023.04.11"]
[WhiteClock "0:00:41"]
[BlackClock "0:00:08"]

1. c4 {[%clk 0:02:58]}  Nf6 {[%clk 0:02:57]} 2. Nc3 {[%clk 0:02:57]}  e6 {[%clk 0:02:57]} 3. d4 {[%clk 0:02:54]}  d5 {[%clk 0:02:58]} 4. Bg5 {[%clk 0:02:53]}  a6 {[%clk 0:02:55]} 5. cxd5 {[%clk 0:02:52]}  exd5 {[%clk 0:02:55]} 6. e3 {[%clk 0:02:52]}  c6 {[%clk 0:02:52]} 7. Qc2 {[%clk 0:02:51]}  Be6 {[%clk 0:02:42]} 8. Bd3 {[%clk 0:02:49]}  Bd6 {[%clk 0:02:41]} 9. Nge2 {[%clk 0:02:47]}  Nbd7 {[%clk 0:02:41]} 10. Nf4 {[%clk 0:02:45]}  O-O {[%clk 0:02:36]} 11. Bxh7+ {[%clk 0:02:36]}  Kh8 {[%clk 0:02:34]} 12. Bd3 {[%clk 0:02:32]}  Qc7 {[%clk 0:02:28]} 13. Nfe2 {[%clk 0:02:25]}  Rfe8 {[%clk 0:02:17]} 14. Bf4 {[%clk 0:02:18]}  b5 {[%clk 0:02:08]} 15. Bxd6 {[%clk 0:02:17]}  Qxd6 {[%clk 0:02:08]} 16. h3 {[%clk 0:02:09]}  a5 {[%clk 0:02:08]} 17. O-O {[%clk 0:02:09]}  Nb6 {[%clk 0:02:04]} 18. Rac1 {[%clk 0:02:06]}  g6 {[%clk 0:02:04]} 19. Nf4 {[%clk 0:02:05]}  Kg7 {[%clk 0:02:04]} 20. Nce2 {[%clk 0:02:03]}  Bd7 {[%clk 0:02:02]} 21. Qc5 {[%clk 0:02:01]}  Qb8 {[%clk 0:01:58]} 22. Ng3 {[%clk 0:01:58]}  Na4 {[%clk 0:01:53]} 23. Qc2 {[%clk 0:01:57]}  Rh8 {[%clk 0:01:54]} 24. b3 {[%clk 0:01:55]}  Nb6 {[%clk 0:01:55]} 25. Rfe1 {[%clk 0:01:51]}  a4 {[%clk 0:01:53]} 26. Qc5 {[%clk 0:01:49]}  Nc8 {[%clk 0:01:47]} 27. Qc2 {[%clk 0:01:36]}  Nd6 {[%clk 0:01:43]} 28. f3 {[%clk 0:01:31]}  Qb6 {[%clk 0:01:19]} 29. Qf2 {[%clk 0:01:28]}  axb3 {[%clk 0:01:16]} 30. axb3 {[%clk 0:01:28]}  g5 {[%clk 0:01:12]} 31. Nfe2 {[%clk 0:01:25]}  Rae8 {[%clk 0:01:07]} 32. Nc3 {[%clk 0:01:20]}  Rh4 {[%clk 0:01:03]} 33. Ra1 {[%clk 0:01:16]}  Reh8 {[%clk 0:01:00]} 34. Bf1 {[%clk 0:01:13]}  Qc7 {[%clk 0:00:55]} 35. Rac1 {[%clk 0:01:10]}  Qb8 {[%clk 0:00:51]} 36. Na2 {[%clk 0:01:08]}  Nh5 {[%clk 0:00:46]} 37. Nxh5+ {[%clk 0:01:07]}  R4xh5 {[%clk 0:00:47]} 38. Nb4 {[%clk 0:01:05]}  Qb6 {[%clk 0:00:38]} 39. Nd3 {[%clk 0:01:02]}  f6 {[%clk 0:00:33]} 40. Nc5 {[%clk 0:01:02]}  Bc8 {[%clk 0:00:31]} 41. Ra1 {[%clk 0:00:56]}  f5 {[%clk 0:00:26]} 42. Qg3 {[%clk 0:00:56]}  Nf7 {[%clk 0:00:24]} 43. Ra8 {[%clk 0:00:53]}  b4 {[%clk 0:00:17]} 44. Rea1 {[%clk 0:00:52]}  g4 {[%clk 0:00:13]} 45. fxg4 {[%clk 0:00:51]}  fxg4 {[%clk 0:00:14]} 46. Rxc8 {[%clk 0:00:50]}  Rxc8 {[%clk 0:00:06]} 47. Qxg4+ {[%clk 0:00:51]}  Rg5 {[%clk 0:00:07]} 48. Qxc8 {[%clk 0:00:50]}  Qd8 {[%clk 0:00:07]} 49. Qxd8 {[%clk 0:00:49]}  Nxd8 {[%clk 0:00:08]} 50. Ra7+ {[%clk 0:00:47]}  Kf6 {[%clk 0:00:07]} 51. Rd7 {[%clk 0:00:46]}  Nf7 {[%clk 0:00:07]} 52. Rc7 {[%clk 0:00:46]}  Rg7 {[%clk 0:00:06]} 53. Rxc6+ {[%clk 0:00:45]}  Kg5 {[%clk 0:00:07]} 54. Be2 {[%clk 0:00:44]}  Kh4 {[%clk 0:00:08]} 55. Rc7 {[%clk 0:00:42]}  Ng5 {[%clk 0:00:06]} 56. Rxg7 {[%clk 0:00:41]}  Nf3+ {[%clk 0:00:07]} 57. gxf3 {[%clk 0:00:39]}  Kxh3 {[%clk 0:00:06]} 58. f4 {[%clk 0:00:40]}  Kh4 {[%clk 0:00:06]} 59. f5 {[%clk 0:00:40]}  Kh3 {[%clk 0:00:05]} 60. f6 {[%clk 0:00:41]}  Kh4 {[%clk 0:00:06]} 61. f7 {[%clk 0:00:41]}  Kh3 {[%clk 0:00:07]} 62. f8=Q {[%clk 0:00:41]}  Kh4 {[%clk 0:00:08]} 63. Qh8# {[%clk 0:00:41]} 1-0


[Site "https://www.chess.com"]